fUSD/lending_fUSD_20260218
["ID","MTS","AMOUNT","RATE_DAILY","PERIOD"]
[405927080,1771419604021,-1003.0,0.00044514,120]
[405927081,1771419604045,-3257.10816465,0.00044514,48]
[405927082,1771419604073,-40000.0,0.00044514,120]
[405927083,1771419604097,-10452.17269,0.00044514,60]
[405927084,1771419604123,-10452.17269,0.00044514,60]
[405927085,1771419604148,-10452.17269,0.00044514,60]
[405927086,1771419604172,-10452.17269,0.00044514,60]
[405927087,1771419604196,-10452.17269,0.00044514,60]
[405927088,1771419604219,-3000.0,0.00044514,30]
[405927089,1771419604241,-68189.75071112,0.00044514,60]
[405927090,1771419604264,-4085.32970728,0.00044514,60]
[405927091,1771419604287,-1064.93843507,0.00044514,30]
[405927092,1771419604310,-488.0,0.00044514,60]
[405927093,1771419604333,-311.80282565,0.00044514,120]
[405927094,1771419604356,-2000.0,0.00044514,120]
[405927095,1771419604379,-5100.0,0.00044514,36]
[405927096,1771419604401,-1459.48361464,0.00044514,120]
[405927097,1771419604426,-2580.0,0.00044514,120]
[405927098,1771419604449,-1793.0,0.00044514,120]
[405927099,1771419604473,-5677.15019614,0.00044514,120]
[405927100,1771419604497,-10534.12252958,0.00044514,30]
[405927101,1771419604521,-240.0,0.00044514,30]
[405927102,1771419604544,-2949.0298955,0.00044514,120]
[405927103,1771419604568,-1161.72304462,0.00044514,120]
[405927104,1771419604592,-27127.86089702,0.00044514,120]
[405927105,1771419604617,-3250.82780143,0.00044514,120]
[405927106,1771419604640,-1000000.0,0.00044514,60]
[405927107,1771419604665,-241.0,0.00044514,120]
[405927108,1771419604689,-265.72207773,0.00044514,120]
[405927109,1771419604713,-5000.0,0.00044514,120]
[405927110,1771419604736,-2991.74133052,0.00044514,30]
[405927111,1771419604762,-151.82933282,0.00044514,120]
[405927112,1771419604786,-11114.59132789,0.00044514,120]
[405927113,1771419604810,-232.0,0.00044514,120]
[405927114,1771419604833,-387.83549122,0.00044514,120]
[405927115,1771419604857,-243099.94025692,0.00044514,120]
[405927116,1771419604881,-434.87004451,0.00044514,120]
[405927117,1771419605046,-1239.66200239,0.00044514,120]
[405927118,1771419605073,-510.75639924,0.00044514,120]
[405927119,1771419605099,-6607.42878373,0.00044514,120]
[405927120,1771419605124,-28251.86419703,0.00044514,30]
[405927121,1771419605148,-158.33053594,0.00044514,120]
[405927122,1771419605173,-88599.08828642,0.00044514,120]
[405927123,1771419605197,-13214.18,0.00044514,30]
[405927124,1771419605220,-700851.75674789,0.00044514,30]
[405927125,1771419605244,-504226.66315983,0.00044514,30]
[405927126,1771419609585,-1496973.89676609,0.00044514,30]
[405927127,1771419609609,-123651.34777489,0.00044514,30]
[405927128,1771419609634,-27205.89553167,0.00044514,60]
[405927129,1771419609658,-513412.03,0.00044514,30]
[405927130,1771419609683,-30000.0,0.00044514,30]
[405927131,1771419609709,-95000.000019,0.00044514,32]
[405927132,1771419609733,-193695.38036141,0.00044514,120]
[405927133,1771419609756,-160484.12419831,0.00044514,30]
[405927134,1771419609780,-10108.06384944,0.00044514,30]
[405927135,1771419609803,-5975.02702125,0.00044514,30]
[405927136,1771419609826,-10830.79365431,0.00044514,30]
[405927137,1771419609851,-238927.15166159,0.00044514,30]
[405927138,1771419609874,-13020.32151687,0.00044514,30]
[405927139,1771419609898,-1246696.84409132,0.00044514,30]
[405927140,1771419609922,-9813.31975351,0.00044514,30]
[405927141,1771419609945,-5423.16302785,0.00044514,30]
[405927142,1771419609969,-5172.53506905,0.00044514,30]
[405927143,1771419609994,-89999.999995,0.00044514,30]
[405927144,1771419610018,-4160.41354915,0.00044514,30]
[405927145,1771419610041,-4700.83511148,0.00044514,30]
[405927146,1771419610069,-109397.62787997,0.00044514,30]
[405927147,1771419610093,-14933.49752702,0.00044514,30]
[405927148,1771419610117,-4628.18136015,0.00044514,30]
[405927149,1771419610141,-7776.78979885,0.00044514,30]
[405927150,1771419610167,-38554.46840621,0.00044514,30]
[405927151,1771419610190,-8723.39162057,0.00044514,30]
[405927152,1771419610213,-3993.39043906,0.00044514,30]
[405927153,1771419610237,-3768.00914591,0.00044514,30]
[405927154,1771419610260,-3762293.44813558,0.00044514,30]
[405927155,1771419610283,-5387.92366271,0.00044514,30]
[405927156,1771419610314,-10741.27923205,0.00044514,30]
[405927157,1771419610337,-6719.24329444,0.00044514,30]
[405927158,1771419610360,-72191.69836201,0.00044514,30]
[405927159,1771419610384,-665639.90818328,0.00044514,30]
[405927160,1771419614154,-1009694.72201181,0.00044514,30]
[405927161,1771419614178,-314378.6442434,0.00044514,30]
[405927162,1771419614202,-4160.50820202,0.00044514,30]
[405927163,1771419614225,-222828.76706168,0.00044514,30]
[405927164,1771419614250,-115681.94307176,0.00044514,30]
[405927165,1771419614274,-7953.0,0.00044514,60]
[405927166,1771419614299,-102185.4665232,0.00044514,120]
[405927167,1771419614325,-4195.00666565,0.00044514,120]
[405927168,1771419614349,-5100.0,0.00044514,35]
[405927169,1771419614377,-110000.0,0.00044514,120]
[405927170,1771419614401,-63400.0,0.00044514,120]
[405927171,1771419614424,-872.12729149,0.00044514,120]
[405927172,1771419614447,-6472.69,0.00044514,30]
[405927173,1771419614472,-130057.46,0.00044514,30]
[405927174,1771419614497,-218.36216232,0.00044514,120]
[405927175,1771419614520,-254745.30014061,0.00044514,120]
[405927176,1771419614544,-162178.20000001,0.00044514,120]
[405927177,1771419614566,-5823.64084335,0.00044514,120]
[405927178,1771419614592,-31923.04050015,0.00044514,120]
[405927179,1771419614615,-700000.0,0.00044514,120]
[405927180,1771419614638,-2679.78564743,0.00044514,68]
[405927181,1771419614662,-40156.53615254,0.00044514,30]
[405927182,1771419614686,-5748.49,0.00044514,30]
[405927183,1771419614711,-1016.19275569,0.00044514,118]
[405927184,1771419614735,-1636.5682335,0.00044514,46]
[405927185,1771419614758,-199.0018,0.00044514,60]
[405927186,1771419614782,-2506.5499326,0.00044514,120]
[405927187,1771419614805,-261.27757514,0.00044514,60]
[405927188,1771419614831,-275.06,0.00044514,120]
[405927189,1771419614854,-2432.8509179,0.00044514,120]
[405927190,1771419614878,-402.0,0.00044514,120]
[405927191,1771419614903,-7350.82335068,0.00044514,30]
[405927192,1771419614927,-1484.0,0.00044514,30]
[405927193,1771419614952,-167.0,0.00044514,120]
[405927194,1771419614977,-3200.0,0.00044514,120]
[405927195,1771419615000,-2280.8,0.00044514,120]
[405927196,1771419615025,-5594.0,0.00044514,120]
[405927197,1771419615047,-315.0,0.00044514,120]
[405927198,1771419615072,-4233.6059101,0.00044514,90]
[405927199,1771419615099,-244.6680551,0.00044514,30]
[405927200,1771419615125,-1932.37384372,0.00044514,91]
[405927201,1771419615149,-3048.46923914,0.00044514,120]
[405927202,1771419615175,-3152.71561114,0.00044514,120]
[405927203,1771419615198,-1734.39109057,0.00044514,120]
[405927204,1771419615222,-478.96159311,0.00044514,120]
[405927205,1771419615246,-317.07751057,0.00044514,120]
[405927206,1771419615270,-1154.65423233,0.00044514,120]
[405927207,1771419615294,-4132.23135246,0.00044514,120]
[405927208,1771419615318,-159.32424503,0.00044514,120]
[405927209,1771419615343,-1348.78784405,0.00044514,120]
[405927210,1771419615368,-324.20893712,0.00044514,30]
[405927211,1771419615393,-5103.80150997,0.00044514,120]
[405927212,1771419615419,-1494.96981074,0.00044514,120]
[405927213,1771419615443,-2934.3826037,0.00044514,90]
[405927214,1771419615468,-412.48607408,0.00044514,120]
[405927215,1771419615494,-635.95883866,0.00044514,60]
[405927216,1771419615519,-2878.32189658,0.00044514,120]
[405927217,1771419615545,-1226.42664475,0.00044514,120]
[405927218,1771419615578,-1524.14259873,0.00044514,30]
[405927219,1771419615605,-2962.4848496,0.00044514,60]
[405927220,1771419615629,-532.63678314,0.00044514,120]
[405927221,1771419615653,-531.73998918,0.00044514,120]
[405927222,1771419615677,-4845.85653685,0.00044514,120]
[405927223,1771419615701,-152.43555839,0.00044514,30]
[405927224,1771419615724,-612.04059077,0.00044514,120]
[405927225,1771419615749,-235.20762446,0.00044514,30]
[405927226,1771419615773,-526.3948269,0.00044514,30]
[405927227,1771419615798,-235.6262766,0.00044514,30]
[405927228,1771419615822,-4372.50319122,0.00044514,120]
[405927229,1771419615846,-599.55353671,0.00044514,30]
[405927230,1771419615870,-494.03657539,0.00044514,120]
[405927231,1771419615893,-763.8034227,0.00044514,30]
[405927232,1771419615917,-272.3889169,0.00044514,120]
[405927233,1771419615943,-905.92393777,0.00044514,60]
[405927234,1771419615967,-1070.73076657,0.00044514,120]
[405927235,1771419615991,-2706.47115395,0.00044514,120]
[405927236,1771419616015,-617.67169744,0.00044514,120]
[405927237,1771419616039,-888.55120373,0.00044514,120]
[405927238,1771419616067,-450.82204454,0.00044514,120]
[405927239,1771419616106,-1157.41261047,0.00044514,120]
[405927240,1771419616130,-386.90737972,0.00044514,30]
[405927241,1771419616155,-534.89235009,0.00044514,120]
[405927242,1771419616183,-360.60343893,0.00044514,120]
[405927243,1771419616207,-1681.78929197,0.00044514,120]
[405927244,1771419616230,-1387.22082326,0.00044514,120]
[405927245,1771419616256,-558.77484638,0.00044514,30]
[405927246,1771419616283,-1008.29369812,0.00044514,30]
[405927247,1771419616306,-674.18301914,0.00044514,120]
[405927248,1771419616331,-16082.32915137,0.00044514,30]
[405927249,1771419616358,-1772.81042765,0.00044514,120]
[405927250,1771419616384,-907.78210554,0.00044514,120]
[405927251,1771419616412,-682.30603957,0.00044514,30]
[405927252,1771419616441,-5251.65272652,0.00044514,120]
[405927253,1771419616467,-625.35229306,0.00044514,120]
[405927254,1771419616492,-2181.18771388,0.00044514,60]
[405927255,1771419616520,-6076.41993277,0.00044514,30]
[405927256,1771419616707,-1625.85456411,0.00044514,120]
[405927257,1771419616731,-465.33375336,0.00044514,120]
[405927258,1771419616756,-3032.5819059,0.00044514,120]
[405927259,1771419616781,-1318.31822508,0.00044514,30]
[405927260,1771419616806,-6484.48837545,0.00044514,120]
[405927261,1771419616830,-4991.97725245,0.00044514,30]
[405927262,1771419616856,-3038.80119251,0.00044514,120]
[405927263,1771419616880,-1132.16792114,0.00044514,120]
[405927264,1771419616904,-287.61845995,0.00044514,120]
[405927265,1771419616929,-160.84755814,0.00044514,30]
[405927266,1771419616952,-1600.80161904,0.00044514,120]
[405927267,1771419616976,-1456.47005827,0.00044514,120]
[405927268,1771419616999,-1392.72690348,0.00044514,30]
[405927269,1771419617023,-385.66828045,0.00044514,120]
[405927270,1771419617047,-2146.12375766,0.00044514,120]
[405927271,1771419617074,-176.18600546,0.00044514,120]
[405927272,1771419617098,-1350.08516453,0.00044514,120]
[405927273,1771419617124,-1791.36066749,0.00044514,120]
[405927274,1771419617148,-358.19827565,0.00044514,120]
[405927275,1771419617174,-1043.56536723,0.00044514,120]
[405927276,1771419617197,-261.42267255,0.00044514,120]
[405927277,1771419617223,-2588.43757453,0.00044514,30]
[405927278,1771419617246,-2234.5893112,0.00044514,120]
[405927279,1771419617274,-420.92460229,0.00044514,30]
[405927280,1771419617318,-352.19662272,0.00044514,120]
[405927281,1771419617346,-1593.69793126,0.00044514,37]
[405927282,1771419617375,-533.15712693,0.00044514,120]
[405927283,1771419617405,-746.81591753,0.00044514,30]
[405927284,1771419617432,-1085.27434693,0.00044514,120]
[405927285,1771419617461,-2355.71692998,0.00044514,30]
[405927286,1771419617489,-582.19847042,0.00044514,120]
[405927287,1771419617517,-1588.07749173,0.00044514,120]
[405927288,1771419617545,-397.99238234,0.00044514,120]
[405927289,1771419617573,-2605.46154792,0.00044514,120]
[405927290,1771419617601,-1124.05566465,0.00044514,120]
[405927291,1771419617625,-264.84652247,0.00044514,120]
[405927292,1771419617650,-377.16617437,0.00044514,30]
[405927293,1771419617676,-300.0,0.00044514,30]
[405927294,1771419617702,-300.0,0.00044514,30]
[405927295,1771419617731,-300.0,0.00044514,30]
[405927296,1771419617757,-300.0,0.00044514,30]
[405927297,1771419617780,-300.0,0.00044514,30]
[405927298,1771419617803,-300.0,0.00044514,30]
[405927299,1771419617827,-300.0,0.00044514,30]
[405927300,1771419617850,-300.0,0.00044514,30]
[405927301,1771419617874,-300.0,0.00044514,30]
[405927302,1771419617897,-300.0,0.00044514,30]
[405927303,1771419617923,-1029.81908213,0.00044514,120]
[405927304,1771419617947,-60415.0,0.00044514,30]
[405927305,1771419617971,-384.94135516,0.00044514,120]
[405927306,1771419617995,-237.1875626,0.00044514,120]
[405927307,1771419618019,-763.5220494,0.00044514,120]
[405927308,1771419618042,-7027.82830137,0.00044514,30]
[405927309,1771419618067,-2117865.82861417,0.00044514,120]
[405927310,1771419618094,-3049.04970715,0.00044514,30]
[405927311,1771419618117,-2611.91922762,0.00044514,30]
[405927312,1771419618142,-2500.0,0.00044514,30]
[405927313,1771419618167,-76498.30572359,0.00044514,30]
[405927314,1771419618191,-1364.8528051,0.00044514,120]
[405927315,1771419618215,-1371.56794048,0.00044514,120]
[405927316,1771419618244,-13495.96201357,0.00044514,120]
[405927317,1771419618269,-3188.50519923,0.00044514,30]
[405927318,1771419618293,-2945.12291432,0.00044514,30]
[405927319,1771419618316,-3893.63028531,0.00044514,30]
[405927320,1771419618340,-2545.32845845,0.00044514,30]
[405927321,1771419618364,-7838.42481258,0.00044514,30]
[405927322,1771419618387,-2441.28136558,0.00044514,30]
[405927323,1771419618409,-1441.86431982,0.00044514,120]
[405927324,1771419618433,-2426.93735704,0.00044514,30]
[405927325,1771419618458,-5624.71166022,0.00044514,30]
[405927326,1771419618483,-9758.70679235,0.00044514,30]
[405927327,1771419618506,-3504.87054348,0.00044514,30]
[405927328,1771419618531,-5037.94226813,0.00044514,30]
[405927329,1771419618555,-10000.0,0.00044514,30]
[405927330,1771419618578,-10000.0,0.00044514,60]
[405927331,1771419618601,-1460.493548,0.00044514,90]
[405927332,1771419618624,-20000.0,0.00044514,30]
[405927333,1771419618646,-20000.0,0.00044514,30]
[405927334,1771419618671,-52009.74484119,0.00044514,30]
[405927335,1771419618696,-50000.0,0.00044514,54]
[405927336,1771419618721,-50000.0,0.00044514,55]
[405927337,1771419618749,-50000.0,0.00044514,59]
[405927338,1771419618775,-50000.0,0.00044514,60]
[405927339,1771419618800,-30953.36293447,0.00044514,30]
[405927340,1771419618825,-12000.0,0.00044514,120]
[405927341,1771419618849,-30000.0,0.00044514,30]
[405927342,1771419618873,-373009.67702053,0.00044514,120]
[405927343,1771419618897,-277.25435832,0.00044514,120]
[405927344,1771419618922,-3942.19033865,0.00044514,120]
[405927345,1771419618945,-49256.6721193,0.00044514,30]
[405927346,1771419618969,-5042.80720724,0.00044514,120]
[405927347,1771419618993,-213.86079593,0.00044514,120]
[405927348,1771419619017,-500.0,0.00044514,120]
[405927349,1771419619040,-4804.371,0.00044514,120]
[405927350,1771419619065,-2864.63,0.00044514,120]
[405927351,1771419619090,-4037.22927081,0.00044514,31]
[405927352,1771419619113,-353.0,0.00044514,120]
[405927353,1771419619137,-1105.0,0.00044514,30]
[405927354,1771419619161,-1105.0,0.00044514,30]
[405927355,1771419619184,-1105.0,0.00044514,30]
[405927356,1771419619207,-1105.0,0.00044514,30]
[405927357,1771419619231,-1105.0,0.00044514,30]
[405927358,1771419619255,-1105.0,0.00044514,30]
[405927359,1771419619279,-1105.0,0.00044514,30]
[405927360,1771419619304,-1105.0,0.00044514,30]
[405927361,1771419619471,-1105.0,0.00044514,30]
[405927362,1771419619495,-1105.0,0.00044514,30]
[405927363,1771419619519,-1105.0,0.00044514,30]
[405927364,1771419619543,-1105.0,0.00044514,30]
[405927365,1771419619567,-1105.0,0.00044514,30]
[405927366,1771419619591,-1105.0,0.00044514,30]
[405927367,1771419619614,-1105.0,0.00044514,30]
[405927368,1771419619638,-1105.0,0.00044514,30]
[405927369,1771419619664,-1105.0,0.00044514,30]
[405927370,1771419619688,-1105.0,0.00044514,30]
[405927371,1771419619712,-1105.0,0.00044514,30]
[405927372,1771419619737,-1105.0,0.00044514,30]
[405927373,1771419619762,-5818.0974352,0.00044514,120]
[405927374,1771419619786,-1196683.0,0.00044514,90]
[405927375,1771419619811,-1000000.0,0.00044514,120]
[405927376,1771419619835,-150.0,0.00044514,30]
[405927377,1771419619859,-476.42,0.00044514,30]
[405927378,1771419619883,-181.03,0.00044514,30]
[405927379,1771419619906,-150.0,0.00044514,30]
[405927380,1771419619932,-150.0,0.00044514,30]
[405927381,1771419619956,-203.04,0.00044514,30]
[405927382,1771419619981,-471.5,0.00044514,30]
[405927383,1771419620005,-181.03,0.00044514,30]
[405927384,1771419620029,-201.43,0.00044514,30]
[405927385,1771419620053,-559.64,0.00044514,30]
[405927386,1771419620078,-562.26,0.00044514,30]
[405927387,1771419620104,-562.19,0.00044514,30]
[405927388,1771419620130,-150.0,0.00044514,30]
[405927389,1771419620157,-471.58,0.00044514,30]
[405927390,1771419620183,-181.03,0.00044514,30]
[405927391,1771419620206,-561.86,0.00044514,30]
[405927392,1771419620230,-201.45,0.00044514,30]
[405927393,1771419620255,-150.0,0.00044514,30]
[405927394,1771419620279,-471.34,0.00044514,30]
[405927395,1771419620302,-559.96,0.00044514,30]
[405927396,1771419620327,-181.03,0.00044514,30]
[405927397,1771419620351,-150.0,0.00044514,30]
[405927398,1771419620374,-175.71,0.00044514,30]
[405927399,1771419620400,-150.0,0.00044514,30]
[405927400,1771419620425,-150.0,0.00044514,30]
[405927401,1771419620448,-295.34,0.00044514,30]
[405927402,1771419620470,-150.0,0.00044514,30]
[405927403,1771419620493,-150.0,0.00044514,30]
[405927404,1771419620516,-471.49,0.00044514,30]
[405927405,1771419620539,-560.12,0.00044514,30]
[405927406,1771419620562,-480.07,0.00044514,30]
[405927407,1771419620586,-1239.37,0.00044514,30]
[405927408,1771419620609,-562.33,0.00044514,30]
[405927409,1771419620632,-181.01,0.00044514,30]
[405927410,1771419620655,-562.33,0.00044514,30]
[405927411,1771419620678,-150.0,0.00044514,30]
[405927412,1771419620701,-464.32,0.00044514,30]
[405927413,1771419620724,-476.49,0.00044514,30]
[405927414,1771419620749,-150.0,0.00044514,30]
[405927415,1771419620772,-560.12,0.00044514,30]
[405927416,1771419620795,-201.47,0.00044514,30]
[405927417,1771419620820,-1318.2,0.00044514,30]
[405927418,1771419620844,-150.0,0.00044514,30]
[405927419,1771419620869,-150.0,0.00044514,30]
[405927420,1771419620894,-201.43,0.00044514,30]
[405927421,1771419620918,-180.99,0.00044514,30]
[405927422,1771419620941,-476.44,0.00044514,30]
[405927423,1771419620964,-560.22,0.00044514,30]
[405927424,1771419620988,-1238.93,0.00044514,30]
[405927425,1771419621011,-562.26,0.00044514,30]
[405927426,1771419621035,-471.58,0.00044514,30]
[405927427,1771419621058,-201.45,0.00044514,30]
[405927428,1771419621085,-562.33,0.00044514,30]
[405927429,1771419621109,-560.22,0.00044514,30]
[405927430,1771419621133,-150.0,0.00044514,30]
[405927431,1771419621158,-180.45,0.00044514,30]
[405927432,1771419621183,-271.06,0.00044514,30]
[405927433,1771419621207,-471.58,0.00044514,30]
[405927434,1771419621232,-150.0,0.00044514,30]
[405927435,1771419621255,-562.33,0.00044514,30]
[405927436,1771419621279,-150.0,0.00044514,30]
[405927437,1771419621302,-470.93,0.00044514,30]
[405927438,1771419621327,-476.49,0.00044514,30]
[405927439,1771419621352,-150.0,0.00044514,30]
[405927440,1771419621375,-150.0,0.00044514,30]
[405927441,1771419621399,-201.47,0.00044514,30]
[405927442,1771419621425,-1198.95,0.00044514,30]
[405927443,1771419621449,-180.89,0.00044514,30]
[405927444,1771419621473,-560.14,0.00044514,30]
[405927445,1771419621497,-181.03,0.00044514,30]
[405927446,1771419621521,-476.49,0.00044514,30]
[405927447,1771419621546,-150.0,0.00044514,30]
[405927448,1771419621569,-560.12,0.00044514,30]
[405927449,1771419621594,-201.43,0.00044514,30]
[405927450,1771419621619,-1240.28,0.00044514,30]
[405927451,1771419621643,-471.58,0.00044514,30]
[405927452,1771419621667,-562.19,0.00044514,30]
[405927453,1771419621693,-150.0,0.00044514,30]
[405927454,1771419621718,-150.0,0.00044514,30]
[405927455,1771419621741,-562.26,0.00044514,30]
[405927456,1771419621765,-471.58,0.00044514,30]
[405927457,1771419621788,-180.97,0.00044514,30]
[405927458,1771419621812,-476.44,0.00044514,30]
[405927459,1771419621835,-201.43,0.00044514,30]
[405927460,1771419621859,-559.9,0.00044514,30]
[405927461,1771419621882,-562.19,0.00044514,30]
[405927462,1771419621904,-201.47,0.00044514,30]
[405927463,1771419621928,-471.58,0.00044514,30]
[405927464,1771419621951,-560.22,0.00044514,30]
[405927465,1771419622131,-150.0,0.00044514,30]
[405927466,1771419622157,-476.49,0.00044514,30]
[405927467,1771419622180,-181.01,0.00044514,30]
[405927468,1771419622203,-560.17,0.00044514,30]
[405927469,1771419622230,-181.01,0.00044514,30]
[405927470,1771419622254,-562.19,0.00044514,30]
[405927471,1771419622277,-476.44,0.00044514,30]
[405927472,1771419622300,-201.45,0.00044514,30]
[405927473,1771419622323,-471.58,0.00044514,30]
[405927474,1771419622347,-201.43,0.00044514,30]
[405927475,1771419622371,-181.03,0.00044514,30]
[405927476,1771419622394,-562.12,0.00044514,30]
[405927477,1771419622417,-560.22,0.00044514,30]
[405927478,1771419622442,-476.39,0.00044514,30]
[405927479,1771419622466,-471.53,0.00044514,30]
[405927480,1771419622494,-180.99,0.00044514,30]
[405927481,1771419622518,-562.26,0.00044514,30]
[405927482,1771419622541,-201.45,0.00044514,30]
[405927483,1771419622565,-476.49,0.00044514,30]
[405927484,1771419622589,-471.53,0.00044514,30]
[405927485,1771419622616,-560.22,0.00044514,30]
[405927486,1771419622640,-560.12,0.00044514,30]
[405927487,1771419622663,-150.0,0.00044514,30]
[405927488,1771419622688,-471.4,0.00044514,30]
[405927489,1771419622711,-497.84,0.00044514,30]
[405927490,1771419622736,-476.44,0.00044514,30]
[405927491,1771419622760,-201.45,0.00044514,30]
[405927492,1771419622784,-180.99,0.00044514,30]
[405927493,1771419622807,-181.01,0.00044514,30]
[405927494,1771419622830,-471.34,0.00044514,30]
[405927495,1771419622853,-562.14,0.00044514,30]
[405927496,1771419622876,-476.36,0.00044514,30]
[405927497,1771419622900,-560.12,0.00044514,30]
[405927498,1771419622925,-201.41,0.00044514,30]
[405927499,1771419622948,-562.33,0.00044514,30]
[405927500,1771419622971,-180.99,0.00044514,30]
[405927501,1771419622994,-471.58,0.00044514,30]
[405927502,1771419623017,-201.41,0.00044514,30]
[405927503,1771419623040,-207.9,0.00044514,30]
[405927504,1771419623065,-476.49,0.00044514,30]
[405927505,1771419623091,-201.45,0.00044514,30]
[405927506,1771419623115,-560.22,0.00044514,30]
[405927507,1771419623138,-476.49,0.00044514,30]
[405927508,1771419623163,-464.52,0.00044514,30]
[405927509,1771419623187,-181.01,0.00044514,30]
[405927510,1771419623211,-420.63,0.00044514,30]
[405927511,1771419623234,-567.51,0.00044514,30]
[405927512,1771419623259,-180.95,0.00044514,30]
[405927513,1771419623283,-327.31,0.00044514,30]
[405927514,1771419623309,-471.53,0.00044514,30]
[405927515,1771419623334,-201.45,0.00044514,30]
[405927516,1771419623358,-560.17,0.00044514,30]
[405927517,1771419623381,-150.0,0.00044514,30]
[405927518,1771419623405,-560.13,0.00044514,30]
[405927519,1771419623430,-277.61,0.00044514,30]
[405927520,1771419623454,-562.26,0.00044514,30]
[405927521,1771419623477,-471.54,0.00044514,30]
[405927522,1771419623501,-201.18,0.00044514,30]
[405927523,1771419623525,-180.97,0.00044514,30]
[405927524,1771419623548,-180.93,0.00044514,30]
[405927525,1771419623572,-476.12,0.00044514,30]
[405927526,1771419623594,-562.26,0.00044514,30]
[405927527,1771419623618,-471.58,0.00044514,30]
[405927528,1771419623642,-560.12,0.00044514,30]
[405927529,1771419623665,-201.42,0.00044514,30]
[405927530,1771419623690,-562.26,0.00044514,30]
[405927531,1771419623714,-476.31,0.00044514,30]
[405927532,1771419623738,-560.17,0.00044514,30]
[405927533,1771419623762,-471.53,0.00044514,30]
[405927534,1771419623786,-181.01,0.00044514,30]
[405927535,1771419623810,-201.45,0.00044514,30]
[405927536,1771419623834,-150.5,0.00044514,30]
[405927537,1771419623857,-201.43,0.00044514,30]
[405927538,1771419623880,-181.03,0.00044514,30]
[405927539,1771419623903,-562.19,0.00044514,30]
[405927540,1771419623927,-471.58,0.00044514,30]
[405927541,1771419623951,-150.0,0.00044514,30]
[405927542,1771419623974,-476.49,0.00044514,30]
[405927543,1771419623999,-150.07,0.00044514,30]
[405927544,1771419624023,-150.0,0.00044514,30]
[405927545,1771419624047,-150.0,0.00044514,30]
[405927546,1771419624071,-560.17,0.00044514,30]
[405927547,1771419624097,-150.0,0.00044514,30]
[405927548,1771419624123,-150.0,0.00044514,30]
[405927549,1771419624148,-568.66,0.00044514,30]
[405927550,1771419624175,-180.99,0.00044514,30]
[405927551,1771419624199,-150.0,0.00044514,30]
[405927552,1771419624223,-476.39,0.00044514,30]
[405927553,1771419624246,-150.0,0.00044514,30]
[405927554,1771419624270,-150.0,0.00044514,30]
[405927555,1771419624294,-150.0,0.00044514,30]
[405927556,1771419624318,-560.17,0.00044514,30]
[405927557,1771419624342,-150.0,0.00044514,30]
[405927558,1771419624365,-201.45,0.00044514,30]
[405927559,1771419624388,-471.53,0.00044514,30]
[405927560,1771419624411,-260.32,0.00044514,30]
[405927561,1771419624435,-150.0,0.00044514,30]
[405927562,1771419624459,-150.0,0.00044514,30]
[405927563,1771419624482,-150.0,0.00044514,30]
[405927564,1771419624506,-201.43,0.00044514,30]
[405927565,1771419624530,-150.0,0.00044514,30]
[405927566,1771419624553,-150.0,0.00044514,30]
[405927567,1771419624577,-150.0,0.00044514,30]
[405927568,1771419624600,-562.19,0.00044514,30]
[405927569,1771419624783,-560.22,0.00044514,30]
[405927570,1771419624808,-476.49,0.00044514,30]
[405927571,1771419624833,-150.0,0.00044514,30]
[405927572,1771419624859,-150.0,0.00044514,30]
[405927573,1771419624883,-181.01,0.00044514,30]
[405927574,1771419624907,-471.53,0.00044514,30]
[405927575,1771419624932,-1934.634319,0.00044514,120]
[405927576,1771419624956,-562.33,0.00044514,30]
[405927577,1771419624981,-150.0,0.00044514,30]
[405927578,1771419625006,-181.03,0.00044514,30]
[405927579,1771419625030,-476.49,0.00044514,30]